fUST/lending_fUST_20250311
["ID","MTS","AMOUNT","RATE_DAILY","PERIOD"]
[355884286,1741677068468,-500.0,0.00042191,120]
[355884287,1741677068477,-500.0,0.00042191,120]
[355884288,1741677068486,-1471.55,0.00042191,120]
[355884289,1741677068496,-500.0,0.00042191,120]
[355884290,1741677068506,-500.0,0.00042191,2]
[355884291,1741677068515,-500.0,0.00042191,120]
[355884292,1741677068524,-648.75505281,0.00042191,120]
[355884293,1741677068534,-730.48,0.00042191,120]
[355884294,1741677068543,-500.0,0.00042191,120]
[355884295,1741677068552,-827.7,0.00042191,120]
[355884296,1741677068562,-500.0,0.00042191,120]
[355884297,1741677068571,-735.85,0.00042191,120]
[355884298,1741677068581,-500.0,0.00042191,120]
[355884299,1741677068593,-500.0,0.00042191,2]
[355884300,1741677068604,-500.0,0.00042191,120]
[355884301,1741677068614,-500.0,0.00042191,120]
[355884302,1741677068623,-500.0,0.00042191,2]
[355884303,1741677068632,-672.42,0.00042191,120]
[355884304,1741677068643,-500.0,0.00042191,120]
[355884305,1741677068652,-500.0,0.00042191,2]
[355884306,1741677068661,-500.0,0.00042191,120]
[355884307,1741677068672,-500.0,0.00042191,120]
[355884308,1741677068684,-500.0,0.00042191,120]
[355884309,1741677068693,-916.61,0.00042191,2]
[355884310,1741677068702,-500.0,0.00042191,120]
[355884311,1741677068711,-500.0,0.00042191,120]
[355884312,1741677068721,-537.24,0.00042191,120]
[355884313,1741677068730,-500.0,0.00042191,120]
[355884314,1741677068739,-517.41,0.00042191,120]
[355884315,1741677068749,-1000.0,0.00042191,120]
[355884316,1741677068758,-1180.91,0.00042191,120]
[355884317,1741677068769,-500.0,0.00042191,120]
[355884318,1741677068779,-500.0,0.00042191,120]
[355884319,1741677068789,-500.0,0.00042191,120]
[355884320,1741677068799,-913.59,0.00042191,120]
[355884321,1741677068809,-500.0,0.00042191,2]
[355884322,1741677068819,-500.0,0.00042191,120]
[355884323,1741677068828,-500.0,0.00042191,120]
[355884324,1741677068838,-500.0,0.00042191,120]
[355884325,1741677068847,-500.0,0.00042191,120]
[355884326,1741677068856,-914.26,0.00042191,120]
[355884327,1741677068865,-942.62,0.00042191,120]
[355884328,1741677068874,-500.0,0.00042191,120]
[355884329,1741677068883,-500.0,0.00042191,120]
[355884330,1741677068893,-500.0,0.00042191,120]
[355884331,1741677068902,-834.72,0.00042191,120]
[355884332,1741677068911,-621.06,0.00042191,120]
[355884333,1741677068921,-891.32,0.00042191,120]
[355884334,1741677068930,-500.0,0.00042191,120]
[355884335,1741677068939,-500.0,0.00042191,120]
[355884336,1741677068948,-879.32,0.00042191,120]
[355884337,1741677068957,-500.0,0.00042191,120]
[355884338,1741677068967,-500.0,0.00042191,120]
[355884339,1741677068976,-1904.23,0.00042191,15]
[355884340,1741677068986,-876.62,0.00042191,120]
[355884341,1741677068995,-500.0,0.00042191,120]
[355884342,1741677069005,-1911.29,0.00042191,120]
[355884343,1741677069015,-500.0,0.00042191,120]
[355884344,1741677069025,-500.0,0.00042191,120]
[355884345,1741677069034,-761.69,0.00042191,120]
[355884346,1741677069044,-618.03,0.00042191,120]
[355884347,1741677069053,-1373.32,0.00042191,120]
[355884348,1741677069063,-500.0,0.00042191,120]
[355884349,1741677069072,-740.7,0.00042191,120]
[355884350,1741677069082,-2196.83,0.00042191,120]
[355884351,1741677069091,-2495.99,0.00042191,120]
[355884352,1741677069100,-500.0,0.00042191,120]
[355884353,1741677069110,-500.0,0.00042191,120]
[355884354,1741677069119,-907.9,0.00042191,120]
[355884355,1741677069128,-500.0,0.00042191,120]
[355884356,1741677069138,-728.19,0.00042191,120]
[355884357,1741677069147,-1064.73,0.00042191,120]
[355884358,1741677069156,-500.0,0.00042191,120]
[355884359,1741677069165,-500.0,0.00042191,120]
[355884360,1741677069174,-500.0,0.00042191,120]
[355884361,1741677069183,-500.0,0.00042191,120]
[355884362,1741677069193,-927.44,0.00042191,120]
[355884363,1741677069202,-500.0,0.00042191,120]
[355884364,1741677069212,-700.81,0.00042191,120]
[355884365,1741677069221,-501.46,0.00042191,120]
[355884366,1741677069230,-500.0,0.00042191,120]
[355884367,1741677069239,-500.0,0.00042191,120]
[355884368,1741677069248,-1139.64,0.00042191,120]
[355884369,1741677069257,-754.45,0.00042191,120]
[355884370,1741677069368,-764.98,0.00042191,120]
[355884371,1741677069378,-603.45101976,0.00042191,120]
[355884372,1741677069387,-500.0,0.00042191,120]
[355884373,1741677069397,-500.0,0.00042191,120]
[355884374,1741677069406,-500.0,0.00042191,120]
[355884375,1741677069415,-500.0,0.00042191,120]
[355884376,1741677069425,-752.8,0.00042191,120]
[355884377,1741677069435,-757.69,0.00042191,120]
[355884378,1741677069444,-194.67541737,0.00042191,120]
[355884379,1741677069453,-500.0,0.00042191,120]
[355884380,1741677069463,-500.0,0.00042191,120]
[355884381,1741677069472,-500.0,0.00042191,120]
[355884382,1741677069482,-871.8,0.00042191,120]
[355884383,1741677069491,-500.0,0.00042191,120]
[355884384,1741677069501,-500.0,0.00042191,120]
[355884385,1741677069510,-560.11608931,0.00042191,120]
[355884386,1741677069519,-500.0,0.00042191,120]
[355884387,1741677069529,-3599.4,0.00042191,120]
[355884388,1741677069539,-590.78,0.00042191,120]
[355884389,1741677069548,-500.0,0.00042191,120]
[355884390,1741677069558,-500.0,0.00042191,120]
[355884391,1741677069567,-500.0,0.00042191,120]
[355884392,1741677069578,-500.0,0.00042191,120]
[355884393,1741677069587,-500.0,0.00042191,120]
[355884394,1741677069596,-526.51,0.00042191,120]
[355884395,1741677069610,-500.0,0.00042191,120]
[355884396,1741677069619,-1060.7,0.00042191,120]
[355884397,1741677069629,-733.46,0.00042191,120]
[355884398,1741677069640,-3170.31,0.00042191,120]
[355884399,1741677069649,-500.0,0.00042191,120]
[355884400,1741677069659,-649.5,0.00042191,120]
[355884401,1741677069669,-273.62030131,0.00042191,120]
[355884402,1741677069679,-913.42,0.00042191,120]
[355884403,1741677069690,-593.12,0.00042191,120]
[355884404,1741677069701,-1207.37,0.00042191,120]
[355884405,1741677069710,-500.0,0.00042191,120]
[355884406,1741677069720,-666.71,0.00042191,120]
[355884407,1741677069729,-500.0,0.00042191,120]
[355884408,1741677069739,-500.0,0.00042191,120]
[355884409,1741677069748,-758.09,0.00042191,120]
[355884410,1741677069758,-500.0,0.00042191,120]
[355884411,1741677069767,-889.28,0.00042191,120]
[355884412,1741677069776,-574.70610089,0.00042191,120]
[355884413,1741677069786,-281.58829983,0.00042191,120]
[355884414,1741677069795,-501.8,0.00042191,120]
[355884415,1741677069804,-500.0,0.00042191,120]
[355884416,1741677069814,-593.40000799,0.00042191,120]
[355884417,1741677069823,-739.81,0.00042191,3]
[355884418,1741677069832,-491.80098768,0.00042191,120]
[355884419,1741677069843,-500.0,0.00042191,120]
[355884420,1741677069853,-6236.56,0.00042191,120]
[355884421,1741677069862,-500.0,0.00042191,120]
[355884422,1741677069872,-704.02,0.00042191,120]
[355884423,1741677069881,-546.67,0.00042191,120]
[355884424,1741677069890,-500.0,0.00042191,120]
[355884425,1741677069899,-1211.6,0.00042191,120]
[355884426,1741677069909,-500.0,0.00042191,120]
[355884427,1741677069918,-5818.24,0.00042191,120]
[355884428,1741677069927,-500.0,0.00042191,120]
[355884429,1741677069937,-500.0,0.00042191,120]
[355884430,1741677069946,-35911.4064298,0.00042191,7]
[355884434,1741677136091,500.0,0.0003,30]
[355884435,1741677136469,500.0,0.0003,30]
[355884436,1741677136816,500.0,0.0003,30]
[355884437,1741677137253,500.0,0.0003,30]
[355884438,1741677137633,500.0,0.0003,30]
[355884439,1741677138002,500.0,0.00028011,2]
[355884440,1741677138881,272.92946154,0.00028011,2]
[355884441,1741677138904,227.07053846,0.00028011,2]
[355884442,1741677139311,500.0,0.0003,30]
[355884443,1741677139340,500.0,0.00028011,2]
[355884444,1741677139692,500.0,0.00028011,2]
[355884445,1741677140060,196.650636,0.00028011,2]
[355884446,1741677140082,750.21560577,0.00028011,2]
[355884447,1741677143519,800.36938322,0.0003,30]
[355884448,1741677149936,500.0,0.0003,30]
[355884449,1741677150327,500.0,0.0003,30]
[355884450,1741677150686,575.19538521,0.00028011,2]
[355884452,1741677236170,160.0,0.0002,3]
[355884453,1741677332912,-241.0,0.0003,28]
[355884460,1741677958125,-817.05773284,0.00028011,2]
[355884461,1741677958149,-500.0,0.00029,30]
[355884462,1741677958173,-500.0,0.00029,30]
[355884463,1741677958195,-223.28760254,0.00030468,2]
[355884464,1741678025091,-360.14904001,0.00030468,2]
[355884465,1741678025117,-21.81631021,0.000309,5]
[355884466,1741678047637,266.35884428,0.00025,7]
[355884469,1741678092090,3690.30525137,0.00021,5]
[355884470,1741678113531,416.7621992,0.00025,4]
[355884471,1741678114176,666.1567796,0.0001,7]
[355884472,1741678114470,246.11227956,0.0002,120]
[355884473,1741678115577,221.95459697,0.00025,120]
[355884474,1741678116238,234.21604693,0.0002,7]
[355884475,1741678117105,20222.35109636,0.00015,4]
[355884476,1741678118422,378.20637443,0.00025,30]
[355884477,1741678119871,6717.89555351,0.00026,30]
[355884482,1741678154120,-5735.76363901,0.0003,60]
[355884483,1741678154142,-1003.81978612,0.0003,30]
[355884484,1741678154163,-6770.95261017,0.0003,60]
[355884485,1741678154185,-409.66627867,0.000325,30]
[355884486,1741678154208,-1491.69178449,0.000329,6]
[355884487,1741678154228,-1151.53980333,0.00035,120]
[355884488,1741678154250,-260.015729,0.0003589,2]
[355884489,1741678154273,-24242.9561853,0.00035929,2]
[355884490,1741678154296,-280.23115452,0.00036676,100]
[355884491,1741678154318,-200.257685,0.00036776,120]
[355884492,1741678154341,-500.0,0.000368,5]
[355884493,1741678154362,-372.61152486,0.00036828,2]
[355884494,1741678154383,-2036.11559975,0.00036898,120]
[355884495,1741678154410,-221.27578706,0.00037,30]
[355884496,1741678154432,-1984.2788317,0.00037797,2]
[355884497,1741678154457,-4905.07487035,0.000385,3]
[355884498,1741678162830,781.02063131,0.00034798,2]
[355884503,1741678196411,597.0,0.00036676,120]
[355884567,1741678232550,-36489.76424204,0.000385,3]
[355884568,1741678232560,-160.0,0.000385,3]
[355884569,1741678232569,-293.7970175,0.00038573,2]
[355884570,1741678232578,-1152.732145,0.000386,38]
[355884571,1741678232587,-286.713478,0.00038673,2]
[355884573,1741678232597,-198.38506888,0.000387,2]
[355884574,1741678232606,-280.23115449,0.0003892,114]
[355884575,1741678232615,-717.24195137,0.000391,38]
[355884577,1741678232713,-282.75804863,0.000391,38]
[355884578,1741678232723,-1000.0,0.000396,38]
[355884579,1741678232732,-500.0,0.00039625,5]
[355884580,1741678232741,-500.0,0.00039625,5]
[355884582,1741678232750,-505.38965201,0.00039625,5]
[355884584,1741678232759,-500.0,0.00039625,5]
[355884586,1741678232768,-500.0,0.00039625,5]
[355884587,1741678232777,-290.84148185,0.00039625,5]
[355884588,1741678232786,-500.0,0.00039625,5]
[355884589,1741678232795,-500.0,0.00039625,5]
[355884590,1741678232805,-502.14187634,0.00039625,5]
[355884591,1741678232814,-500.0,0.00039625,5]
[355884592,1741678232823,-500.0,0.00039625,5]
[355884593,1741678232832,-500.0,0.00039625,5]
[355884594,1741678232842,-500.0,0.00039625,5]
[355884595,1741678232851,-500.0,0.00039625,5]
[355884596,1741678232859,-160.66808625,0.00039625,5]
[355884597,1741678232868,-500.0,0.00039625,5]
[355884598,1741678232878,-500.0,0.00039625,5]
[355884599,1741678232887,-298.89073316,0.00039625,5]
[355884600,1741678232896,-248.72469907,0.000397,2]
[355884601,1741678232906,-293.79701746,0.00039734,2]
[355884602,1741678232915,-781.02063131,0.00039798,2]
[355884603,1741678232925,-373.31279843,0.00039846,2]
[355884604,1741678232935,-458.43,0.0003999,3]
[355884605,1741678232944,-229.22,0.0003999,3]
[355884606,1741678232953,-687.67,0.0003999,3]
[355884607,1741678232962,-1586.86641375,0.0004,15]
[355884608,1741678232972,-17282.11431739,0.0004,120]
[355884625,1741678240831,-500.0,0.00039797,2]
[355884626,1741678240841,-29.12504336,0.00039797,31]
[355884636,1741678243685,-128.31495664,0.00039797,31]
[355884637,1741678243695,-468.35084466,0.00039797,2]
[355884642,1741678246624,-31.64915534,0.00039797,2]
[355884643,1741678246633,-39.77873768,0.00039797,2]
[355884644,1741678246644,-460.22126232,0.00039797,2]
[355884646,1741678246654,-500.0,0.00039797,2]
[355884649,1741678246664,-500.0,0.00039797,2]
[355884650,1741678246674,-500.0,0.00039797,2]
[355884652,1741678246683,-500.0,0.00039797,2]
[355884653,1741678246693,-500.0,0.00039797,2]
[355884654,1741678246702,-500.0,0.00039797,2]
[355884655,1741678246712,-500.0,0.00039797,2]
[355884657,1741678246722,-500.0,0.00039797,2]
[355884659,1741678246731,-500.0,0.00039797,2]
[355884660,1741678246740,-500.0,0.00039797,2]
[355884661,1741678246749,-500.0,0.00039797,2]
[355884662,1741678246759,-174.94200459,0.00039797,2]
[355884663,1741678246767,-500.0,0.00039797,2]
[355884664,1741678246776,-500.0,0.00039797,2]
[355884666,1741678246786,-500.0,0.00039797,2]
[355884667,1741678246795,-500.0,0.00039797,2]
[355884669,1741678246804,-500.0,0.00039797,2]
[355884671,1741678246813,-500.0,0.00039797,2]
[355884673,1741678246823,-500.0,0.00039797,2]
[355884674,1741678246832,-500.0,0.00039797,2]
[355884675,1741678246841,-500.0,0.00039797,2]
[355884676,1741678246850,-429.9104434,0.00039999,31]
[355884677,1741678246859,-482.10101726,0.00039999,31]
[355884679,1741678246868,-185.27977738,0.00039999,31]
[355884680,1741678246878,-137587.00202115,0.0004,120]
[355884681,1741678246887,-1000.0,0.000401,38]
[355884682,1741678246896,-1000.0,0.000406,38]
[355884683,1741678246905,-3232.95104874,0.00040712,2]
[355884684,1741678246915,-559.4225717,0.00040886,30]
[355884685,1741678246924,-293.79701746,0.00040895,28]
[355884686,1741678246934,-528.17,0.000409,2]
[355884687,1741678246943,-500.0,0.000409,2]
[355884688,1741678246952,-500.0,0.000409,2]
[355884689,1741678246961,-500.0,0.000409,2]
[355884690,1741678246972,-500.0,0.000409,2]
[355884691,1741678246983,-500.0,0.000409,2]
[355884692,1741678246992,-500.0,0.000409,2]
[355884693,1741678247002,-500.0,0.000409,2]
[355884694,1741678247011,-500.0,0.000409,2]
[355884695,1741678247022,-500.0,0.000409,2]
[355884696,1741678247032,-500.0,0.000409,2]
[355884697,1741678247042,-500.0,0.000409,2]
[355884698,1741678247051,-500.0,0.000409,2]
[355884699,1741678247061,-500.0,0.000409,2]
[355884700,1741678247070,-500.0,0.000409,2]
[355884701,1741678247080,-500.0,0.000409,2]
[355884702,1741678247089,-500.0,0.000409,2]
[355884703,1741678247099,-500.0,0.000409,2]
[355884704,1741678247108,-500.0,0.000409,2]
[355884705,1741678247117,-500.0,0.000409,2]
[355884706,1741678247126,-167.84703924,0.000409,2]
[355884707,1741678247136,-151.0,0.0004097,2]
[355884708,1741678247147,-1000.0,0.0004097,2]
[355884709,1741678247156,-600.0,0.0004097,2]
[355884710,1741678247166,-500.0,0.00040973,5]
[355884711,1741678247176,-268.81984547,0.00040973,5]
[355884712,1741678247185,-500.60060236,0.00040973,2]
[355884713,1741678247194,-500.0,0.00040973,5]
[355884714,1741678247204,-502.4949272,0.00040973,5]
[355884715,1741678247214,-150.241841,0.00040973,5]
[355884716,1741678247223,-517.95957604,0.00040973,5]
[355884717,1741678247233,-500.0,0.00040973,5]
[355884718,1741678247242,-49388.9270402,0.00040985,3]
[355884719,1741678247251,-15572.92107546,0.00040985,3]
[355884720,1741678247260,-160.0,0.00040985,3]
[355884721,1741678247269,-680.0,0.00040993,120]
[355884722,1741678247279,-167.84703924,0.00040995,2]
[355884723,1741678247287,-13237.54384979,0.00040995,2]
[355884724,1741678251492,4138.1346,0.00026,10]
[355884725,1741678251514,3973.23839379,0.00026,10]
[355884726,1741678251536,1888.62700621,0.00026,10]
[355884727,1741678261520,2836.11362334,0.00026,10]
[355884728,1741678261544,3654.45467344,0.00026,10]
[355884729,1741678261566,3423.55109797,0.00026,10]
[355884730,1741678261595,85.88060525,0.00026,10]
[355884731,1741678273622,10000.0,0.00026,10]
[355884732,1741678289077,10000.0,0.00026,10]
[355884743,1741678416496,150.0,4.397e-05,30]
[355884745,1741678702228,-500.0,0.00028011,2]
[355884746,1741678702249,-500.0,0.00028011,2]
[355884747,1741678702271,-500.0,0.00028011,2]
[355884748,1741678702294,-500.0,0.00028011,2]
[355884749,1741678702315,-633.50051788,0.00028011,2]
[355884750,1741678702335,-719.5365719,0.00028011,2]
[355884751,1741678702357,-500.0,0.00029,30]
[355884752,1741678702378,-500.0,0.00029,30]
[355884753,1741678702399,-500.0,0.00029,30]
[355884754,1741678702420,-500.0,0.00029,30]
[355884755,1741678702439,-500.0,0.00029,30]
[355884756,1741678702460,-500.0,0.00029,30]
[355884757,1741678702480,-500.0,0.00029,30]
[355884758,1741678702500,-3190.0,0.00029699,15]
[355884759,1741678702520,-4928.0,0.00029699,15]
[355884760,1741678702541,-2015.0,0.00029699,15]
[355884761,1741678702561,-3105.0,0.00029699,15]
[355884762,1741678702583,-798.0,0.00029699,15]
[355884763,1741678702604,-1595.0,0.00029699,15]
[355884764,1741678702624,-199.0,0.00029699,15]
[355884765,1741678702644,-399.0,0.00029699,15]
[355884766,1741678702664,-150.0,0.00029699,15]
[355884767,1741678702683,-1963.0,0.00031747,15]
[355884768,1741678702704,-1963.0,0.00031747,15]
[355884769,1741678702724,-1963.0,0.00031747,15]
[355884770,1741678702744,-1963.0,0.00031747,15]
[355884771,1741678702764,-1965.0,0.00031747,15]
[355884772,1741678702784,-1963.0,0.00031747,15]
[355884773,1741678702807,-1441.96872492,0.000319,6]
[355884774,1741678702828,-2748.4188157,0.000378,2]
[355884775,1741678702849,-200.257685,0.00037964,120]
[355884776,1741678702869,-403.9472,0.00038,120]
[355884777,1741678702890,-262.0994164,0.000384,2]
[355884778,1741678702912,-675.90174122,0.00038885,2]
[355884779,1741678702938,-500.0,0.00039999,2]
[355884780,1741678702964,-500.0,0.00039999,2]
[355884781,1741678702990,-500.0,0.00039999,2]
[355884782,1741678703016,-500.0,0.00039999,2]
[355884783,1741678703043,-500.0,0.00039999,2]
[355884784,1741678703069,-500.0,0.00039999,2]
[355884785,1741678703095,-500.0,0.00039999,2]
[355884786,1741678703123,-500.0,0.00039999,2]
[355884787,1741678703150,-312.2647358,0.00039999,2]
[355884788,1741678703172,-5000.0,0.0004,120]
[355884789,1741678703196,-5000.0,0.0004,2]
[355884790,1741678703219,-3370.0,0.0004,30]
[355884791,1741678703241,-5000.0,0.0004,7]
[355884792,1741678703425,-1200.0,0.0004,15]
[355884793,1741678703448,-1812.74358742,0.0004079,15]
[355884794,1741678703470,-1437.9665595,0.000408,10]
[355884795,1741678703492,-164.62408557,0.00040886,120]
[355884796,1741678875394,-200.0,0.00027,120]
[355884797,1741678875417,-200.0,0.00029,120]
[355884798,1741678875440,-200.0,0.000323,120]
[355884799,1741678875465,-133.0,0.00036821,2]
[355884800,1741678901742,-1672.6120155,0.00036821,2]
[355884801,1741678901765,-200.0,0.000376,120]
[355884802,1741678901786,-324.0,0.00038,120]
[355884803,1741678901809,-1393.90310093,0.000399,8]
[355884804,1741678901831,-508.50915436,0.0004,120]
[355884817,1741679153133,-182.78893981,0.00028011,2]
[355884818,1741679235089,-189.0958765,0.00028011,2]
[355884819,1741679345125,-445.17291653,0.00028011,2]
[355884820,1741679345148,-500.0,0.00029,30]
[355884821,1741679345171,-500.0,0.00029,30]
[355884822,1741679345196,-168.13869271,0.00036774,101]
[355884823,1741679345218,-207.5264151,0.00036874,2]
[355884824,1741679345240,-1381.53990591,0.000369,7]
[355884825,1741679361085,-5762.17326133,0.00038657,2]
[355884863,1741679438599,-250.0,0.000379,2]
[355884864,1741679438696,-200.60116081,0.000379,2]
[355884865,1741679438706,-10238.70168607,0.00038657,2]
[355884866,1741679438716,-400.0,0.00039,120]
[355884867,1741679438725,-377.17337618,0.0004,30]
[355884868,1741679438735,-445.6130046,0.0004,120]
[355884869,1741679438745,-653.76421178,0.0004,15]
[355884870,1741679438754,-247.0521906,0.0004,14]
[355884871,1741679438763,-224.2436163,0.00040064,30]
[355884872,1741679438772,-801.47955664,0.00040067,2]
[355884873,1741679438782,-152.82610872,0.0004014,20]
[355884874,1741679438792,-801.47955664,0.00040431,2]
[355884875,1741679438802,-801.47955666,0.00040672,2]
[355884876,1741679438812,-294.73113017,0.00040785,28]
[355884877,1741679438822,-163.63040463,0.00040786,2]
[355884878,1741679438831,-163.63040463,0.00040821,2]
[355884879,1741679438840,-169.08846976,0.00040855,2]
[355884880,1741679438850,-163.63040463,0.00040855,2]
[355884881,1741679438859,-200.0,0.00040855,30]
[355884882,1741679438868,-1000.0,0.00040871,2]
[355884883,1741679438878,-500.0,0.00040873,5]
[355884884,1741679438887,-500.0,0.00040873,5]
[355884885,1741679438897,-500.0,0.00040873,5]
[355884886,1741679438906,-500.0,0.00040873,5]
[355884887,1741679438915,-500.0,0.00040873,5]
[355884888,1741679438924,-150.04,0.00040873,2]
[355884889,1741679438934,-150.04,0.00040873,2]
[355884890,1741679438943,-150.04,0.00040873,2]
[355884891,1741679438953,-150.04,0.00040873,2]
[355884892,1741679438962,-150.04,0.00040873,2]
[355884893,1741679438971,-150.04,0.00040873,2]
[355884894,1741679438980,-150.04,0.00040873,2]
[355884895,1741679438990,-310.7790786,0.00040876,30]
[355884896,1741679438999,-155.417131,0.00040876,30]
[355884897,1741679439008,-153.0,0.00040876,30]
[355884898,1741679439018,-153.0,0.00040876,30]
[355884899,1741679439027,-153.0,0.00040876,30]
[355884900,1741679439036,-497.09035705,0.00040882,31]
[355884901,1741679439046,-402.32360153,0.00040882,31]
[355884902,1741679439055,-500.0,0.00040882,2]
[355884903,1741679439064,-479.1405262,0.00040882,2]
[355884904,1741679439073,-292127.68541,0.00040883,2]
[355884905,1741679439082,-229.21,0.00040885,3]
[355884906,1741679439091,-687.67,0.00040885,3]
[355884907,1741679439101,-15572.92107546,0.00040885,3]
[355884908,1741679439110,-37905.3883552,0.00040885,3]
[355884909,1741679439119,-160.0,0.00040885,3]
[355884910,1741679439128,-844.23,0.00040886,120]
[355884911,1741679439138,-169.08846976,0.0004089,2]
[355884912,1741679439147,-106072.90870227,0.00040895,47]
[355884913,1741679439157,-222000.0,0.00040895,2]
[355884914,1741679439166,-169.08846976,0.00040925,2]
[355884915,1741679439176,-25821.19327871,0.00040955,2]
[355884916,1741679439186,-169.08846976,0.0004096,2]
[355884917,1741679439196,-151.0,0.0004097,2]
[355884918,1741679439205,-600.0,0.0004097,2]
[355884919,1741679439215,-500.0,0.00040973,5]
[355884920,1741679439224,-281.41573974,0.00040973,5]
[355884921,1741679439233,-500.0,0.00040973,5]
[355884922,1741679439242,-274.31055979,0.00040973,5]
[355884923,1741679439251,-500.0,0.00040984,2]
[355884924,1741679439260,-212.39,0.00040984,2]
[355884925,1741679439270,-168.42502167,0.00040985,5]
[355884926,1741679439279,-9476.3470888,0.00040985,3]
[355884927,1741679439288,-160.0,0.00040985,3]
[355884928,1741679439297,-416.66666667,0.00040985,3]
[355884929,1741679439307,-200.01,0.00040992,120]
[355884930,1741679439316,-680.0,0.00040993,120]
[355884931,1741679439326,-199.99,0.00040994,120]
[355884932,1741679439337,-169.08846976,0.00040995,2]
[355884933,1741679439347,-3000.0,0.00040995,2]
[355884934,1741679439357,-1000.0,0.00041,120]
[355884935,1741679439366,-378.69,0.00041,30]
[355884936,1741679439377,-500.0,0.00041,120]
[355884937,1741679439386,-295.0,0.00041,14]
[355884938,1741679439395,-179.86575994,0.00041,10]
[355884939,1741679439404,-622.2,0.00041025,2]
[355884940,1741679439415,-203.29446052,0.00041073,5]
[355884941,1741679439426,-500.0,0.00041073,5]
[355884942,1741679439436,-500.0,0.00041073,5]
[355884943,1741679439447,-500.0,0.00041073,5]
[355884944,1741679439456,-500.0,0.00041073,5]
[355884945,1741679439466,-500.0,0.00041073,5]
[355884946,1741679439475,-500.0,0.00041073,5]
[355884947,1741679439484,-500.0,0.00041073,5]
[355884948,1741679439494,-497.92153952,0.00041073,5]
[355884949,1741679439503,-500.0,0.00041073,5]
[355884950,1741679439514,-500.0,0.00041073,5]
[355884951,1741679439523,-500.0,0.00041073,5]
[355884952,1741679439533,-500.0,0.00041073,5]
[355884953,1741679439542,-500.0,0.00041073,5]
[355884954,1741679439551,-500.0,0.00041073,5]
[355884955,1741679439561,-500.0,0.00041073,5]
[355884956,1741679439570,-400.01752639,0.00041073,5]
[355884957,1741679439579,-371.66504729,0.00041073,5]
[355884958,1741679439589,-515.42809487,0.00041073,5]
[355884959,1741679439598,-500.0,0.00041073,5]
[355884960,1741679439607,-502.09756647,0.00041073,5]
[355884961,1741679439617,-500.0,0.00041073,5]
[355884962,1741679439627,-407.4997466,0.00041073,5]
[355884963,1741679439636,-500.0,0.00041073,5]
[355884964,1741679439646,-500.0,0.00041073,5]
[355884965,1741679439655,-500.0,0.00041073,5]
[355884966,1741679439665,-500.0,0.00041073,5]
[355884967,1741679439674,-500.0,0.00041073,5]
[355884968,1741679439683,-504.60860518,0.00041073,5]
[355884969,1741679439693,-645.2214,0.0004108,2]
[355884970,1741679439703,-159.47,0.00041084,2]
[355884971,1741679439712,-159.47,0.00041084,2]
[355884972,1741679439721,-159.47,0.00041084,2]
[355884973,1741679439730,-159.47,0.00041084,2]